[Event "Titled Tuesday Blitz June 15 2021"]
[White "Solon, Nathan"]
[Black "Karpov, Vadim"]
[WhiteFideId "2017229"]
[BlackFideId "4155025"]
[WhiteElo "2632"]
[BlackElo "2290"]
[Result "1-0"]
[Round "08"]
[TimeControl "180+1"]
[Date "2021.06.15"]
[WhiteClock "0:00:20"]
[BlackClock "0:00:02"]

1. d4 {[%clk 0:03:00]}  Nf6 {[%clk 0:02:59]} 2. c4 {[%clk 0:03:00]}  e6 {[%clk 0:02:59]} 3. g3 {[%clk 0:03:00]}  d5 {[%clk 0:02:59]} 4. Bg2 {[%clk 0:03:01]}  Bb4+ {[%clk 0:02:59]} 5. Nd2 {[%clk 0:03:01]}  O-O {[%clk 0:02:57]} 6. Nf3 {[%clk 0:03:01]}  b6 {[%clk 0:02:57]} 7. O-O {[%clk 0:03:01]}  Bb7 {[%clk 0:02:57]} 8. a3 {[%clk 0:03:01]}  Be7 {[%clk 0:02:57]} 9. cxd5 {[%clk 0:03:01]}  exd5 {[%clk 0:02:56]} 10. b4 {[%clk 0:03:01]}  Nbd7 {[%clk 0:02:53]} 11. Bb2 {[%clk 0:02:58]}  Bd6 {[%clk 0:02:51]} 12. Rc1 {[%clk 0:02:50]}  Re8 {[%clk 0:02:51]} 13. e3 {[%clk 0:02:46]}  c6 {[%clk 0:02:46]} 14. Qb3 {[%clk 0:02:37]}  a5 {[%clk 0:02:42]} 15. Rfe1 {[%clk 0:02:30]}  axb4 {[%clk 0:02:41]} 16. axb4 {[%clk 0:02:30]}  b5 {[%clk 0:02:41]} 17. Ne5 {[%clk 0:02:12]}  Nxe5 {[%clk 0:02:37]} 18. dxe5 {[%clk 0:02:13]}  Bxe5 {[%clk 0:02:37]} 19. Bxe5 {[%clk 0:02:12]}  Rxe5 {[%clk 0:02:38]} 20. Nf3 {[%clk 0:02:12]}  Re8 {[%clk 0:02:28]} 21. Nd4 {[%clk 0:02:12]}  Ra6 {[%clk 0:02:23]} 22. Rc2 {[%clk 0:02:07]}  Nd7 {[%clk 0:02:18]} 23. Rec1 {[%clk 0:02:05]}  Ne5 {[%clk 0:02:17]} 24. Qc3 {[%clk 0:01:44]}  g6 {[%clk 0:02:09]} 25. Nb3 {[%clk 0:01:36]}  Nc4 {[%clk 0:02:03]} 26. Nc5 {[%clk 0:01:33]}  Ra7 {[%clk 0:02:03]} 27. Qd4 {[%clk 0:01:31]}  Qa8 {[%clk 0:01:45]} 28. Nd7 {[%clk 0:01:30]}  Re6 {[%clk 0:01:30]} 29. Bh3 {[%clk 0:01:24]}  f5 {[%clk 0:01:23]} 30. Nf6+ {[%clk 0:01:21]}  Rxf6 {[%clk 0:01:16]} 31. Qxf6 {[%clk 0:01:22]}  Qf8 {[%clk 0:01:17]} 32. Qd4 {[%clk 0:01:15]}  Ra4 {[%clk 0:01:10]} 33. g4 {[%clk 0:01:10]}  Rxb4 {[%clk 0:00:55]} 34. Qa7 {[%clk 0:00:57]}  Bc8 {[%clk 0:00:50]} 35. gxf5 {[%clk 0:00:47]}  Ra4 {[%clk 0:00:50]} 36. Qc7 {[%clk 0:00:45]}  Bxf5 {[%clk 0:00:22]} 37. Bxf5 {[%clk 0:00:45]}  Qxf5 {[%clk 0:00:22]} 38. Qxc6 {[%clk 0:00:38]}  Na3 {[%clk 0:00:12]} 39. Qe8+ {[%clk 0:00:28]}  Kg7 {[%clk 0:00:12]} 40. Qe7+ {[%clk 0:00:28]}  Kh6 {[%clk 0:00:11]} 41. Rc7 {[%clk 0:00:21]}  Qg4+ {[%clk 0:00:08]} 42. Kf1 {[%clk 0:00:21]}  Qh3+ {[%clk 0:00:02]} 43. Ke1 {[%clk 0:00:20]} 1-0


[Site "https://www.chess.com"]

[Event "Titled Tuesday Blitz June 15 2021"]
[White "Starozhilov, Leonid"]
[Black "Indjic, Aleksandar"]
[WhiteFideId "14106752"]
[BlackFideId "911925"]
[WhiteElo "2414"]
[BlackElo "2643"]
[Result "0-1"]
[Round "08"]
[TimeControl "180+1"]
[Date "2021.06.15"]
[WhiteClock "0:00:04"]
[BlackClock "0:00:46"]

1. e4 {[%clk 0:02:52]}  c5 {[%clk 0:02:59]} 2. Nf3 {[%clk 0:02:50]}  e6 {[%clk 0:02:59]} 3. b3 {[%clk 0:02:45]}  Nc6 {[%clk 0:02:53]} 4. Bb2 {[%clk 0:02:43]}  d6 {[%clk 0:02:52]} 5. Bb5 {[%clk 0:02:39]}  Ne7 {[%clk 0:02:48]} 6. O-O {[%clk 0:02:37]}  a6 {[%clk 0:02:48]} 7. Bxc6+ {[%clk 0:02:34]}  bxc6 {[%clk 0:02:41]} 8. d4 {[%clk 0:02:34]}  cxd4 {[%clk 0:02:41]} 9. Nxd4 {[%clk 0:02:32]}  e5 {[%clk 0:02:37]} 10. Ne2 {[%clk 0:02:28]}  Ng6 {[%clk 0:02:30]} 11. c4 {[%clk 0:02:25]}  Be7 {[%clk 0:02:24]} 12. Nbc3 {[%clk 0:02:24]}  O-O {[%clk 0:02:23]} 13. c5 {[%clk 0:02:17]}  dxc5 {[%clk 0:02:16]} 14. Na4 {[%clk 0:02:10]}  Be6 {[%clk 0:02:01]} 15. Qc2 {[%clk 0:01:56]}  c4 {[%clk 0:02:00]} 16. bxc4 {[%clk 0:01:57]}  Rb8 {[%clk 0:01:50]} 17. c5 {[%clk 0:01:48]}  Rb4 {[%clk 0:01:45]} 18. Nb6 {[%clk 0:01:43]}  Rb5 {[%clk 0:01:45]} 19. Na4 {[%clk 0:01:32]}  Qb8 {[%clk 0:01:32]} 20. Ng3 {[%clk 0:01:12]}  Nf4 {[%clk 0:01:22]} 21. Nf5 {[%clk 0:00:54]}  Bxf5 {[%clk 0:01:22]} 22. exf5 {[%clk 0:00:55]}  Bxc5 {[%clk 0:01:22]} 23. Nxc5 {[%clk 0:00:55]}  Rxb2 {[%clk 0:01:21]} 24. Qe4 {[%clk 0:00:50]}  Qd6 {[%clk 0:01:21]} 25. Nb3 {[%clk 0:00:22]}  Qd5 {[%clk 0:01:13]} 26. Rfe1 {[%clk 0:00:19]}  f6 {[%clk 0:01:12]} 27. Rad1 {[%clk 0:00:14]}  Ne2+ {[%clk 0:00:56]} 28. Rxe2 {[%clk 0:00:10]}  Qxd1+ {[%clk 0:00:55]} 29. Re1 {[%clk 0:00:11]}  Qd5 {[%clk 0:00:55]} 30. Qa4 {[%clk 0:00:07]}  e4 {[%clk 0:00:50]} 31. Qxa6 {[%clk 0:00:06]}  Qxf5 {[%clk 0:00:48]} 32. Qc4+ {[%clk 0:00:06]}  Kh8 {[%clk 0:00:47]} 33. Qd4 {[%clk 0:00:05]}  Rxa2 {[%clk 0:00:46]} 34. Nc5 {[%clk 0:00:04]}  Qd5 {[%clk 0:00:46]} 0-1


[Site "https://www.chess.com"]

[Event "Titled Tuesday Blitz June 15 2021"]
[White "Svane, Frederik"]
[Black "Jia, Haoxiang"]
[WhiteFideId "12923044"]
[BlackFideId "8602999"]
[WhiteElo "2459"]
[BlackElo "2649"]
[Result "1-0"]
[Round "08"]
[TimeControl "180+1"]
[Date "2021.06.15"]
[WhiteClock "0:00:06"]
[BlackClock "0:00:19"]

1. e4 {[%clk 0:03:00]}  c5 {[%clk 0:02:59]} 2. Nf3 {[%clk 0:03:01]}  e6 {[%clk 0:02:59]} 3. d4 {[%clk 0:03:01]}  cxd4 {[%clk 0:02:59]} 4. Nxd4 {[%clk 0:03:02]}  a6 {[%clk 0:03:00]} 5. g3 {[%clk 0:03:00]}  d5 {[%clk 0:02:58]} 6. Ne2 {[%clk 0:02:53]}  dxe4 {[%clk 0:02:49]} 7. Qxd8+ {[%clk 0:02:52]}  Kxd8 {[%clk 0:02:49]} 8. Nbc3 {[%clk 0:02:52]}  f5 {[%clk 0:02:48]} 9. Bf4 {[%clk 0:02:50]}  Nf6 {[%clk 0:02:44]} 10. O-O-O {[%clk 0:02:50]}  Ke8 {[%clk 0:02:43]} 11. Bg2 {[%clk 0:02:47]}  Nbd7 {[%clk 0:02:38]} 12. Nd4 {[%clk 0:02:23]}  Kf7 {[%clk 0:02:10]} 13. Be3 {[%clk 0:01:32]}  Bb4 {[%clk 0:02:02]} 14. f3 {[%clk 0:01:29]}  Bxc3 {[%clk 0:02:01]} 15. bxc3 {[%clk 0:01:30]}  exf3 {[%clk 0:01:59]} 16. Bxf3 {[%clk 0:01:30]}  Ne5 {[%clk 0:01:55]} 17. Bg2 {[%clk 0:01:29]}  Nc4 {[%clk 0:01:54]} 18. Bg5 {[%clk 0:01:24]}  h6 {[%clk 0:01:50]} 19. Bd2 {[%clk 0:01:20]}  e5 {[%clk 0:01:34]} 20. Nb3 {[%clk 0:01:15]}  e4 {[%clk 0:01:32]} 21. Bf1 {[%clk 0:01:06]}  Nxd2 {[%clk 0:01:28]} 22. Rxd2 {[%clk 0:01:07]}  Be6 {[%clk 0:01:27]} 23. Kb2 {[%clk 0:00:54]}  Bd5 {[%clk 0:01:14]} 24. Bg2 {[%clk 0:00:44]}  Rad8 {[%clk 0:01:12]} 25. Rhd1 {[%clk 0:00:42]}  b5 {[%clk 0:01:07]} 26. Nd4 {[%clk 0:00:23]}  g6 {[%clk 0:01:02]} 27. Nc6 {[%clk 0:00:20]}  Rde8 {[%clk 0:00:40]} 28. Rxd5 {[%clk 0:00:15]}  Nxd5 {[%clk 0:00:41]} 29. Rxd5 {[%clk 0:00:16]}  Re6 {[%clk 0:00:41]} 30. Nd4 {[%clk 0:00:05]}  Re7 {[%clk 0:00:41]} 31. Rd6 {[%clk 0:00:04]}  h5 {[%clk 0:00:32]} 32. h4 {[%clk 0:00:02]}  Rhe8 {[%clk 0:00:24]} 33. Bf1 {[%clk 0:00:03]}  Kg7 {[%clk 0:00:22]} 34. Be2 {[%clk 0:00:03]}  Ra8 {[%clk 0:00:19]} 35. Kb3 {[%clk 0:00:02]}  Raa7 {[%clk 0:00:19]} 36. a3 {[%clk 0:00:03]}  Rab7 {[%clk 0:00:20]} 37. Rxa6 {[%clk 0:00:03]}  e3 {[%clk 0:00:19]} 38. Rd6 {[%clk 0:00:03]}  Ra7 {[%clk 0:00:17]} 39. Nc6 {[%clk 0:00:03]}  Rad7 {[%clk 0:00:16]} 40. Rxd7 {[%clk 0:00:04]}  Rxd7 {[%clk 0:00:16]} 41. Nd4 {[%clk 0:00:04]}  Rd5 {[%clk 0:00:16]} 42. Nxb5 {[%clk 0:00:02]}  g5 {[%clk 0:00:17]} 43. hxg5 {[%clk 0:00:02]}  Kg6 {[%clk 0:00:17]} 44. Nd4 {[%clk 0:00:02]}  Kxg5 {[%clk 0:00:17]} 45. Kc4 {[%clk 0:00:03]}  Ra5 {[%clk 0:00:17]} 46. Kb4 {[%clk 0:00:01]}  Re5 {[%clk 0:00:17]} 47. a4 {[%clk 0:00:02]}  f4 {[%clk 0:00:17]} 48. gxf4+ {[%clk 0:00:02]}  Kxf4 {[%clk 0:00:18]} 49. a5 {[%clk 0:00:03]}  h4 {[%clk 0:00:18]} 50. a6 {[%clk 0:00:04]}  h3 {[%clk 0:00:18]} 51. a7 {[%clk 0:00:04]}  Re8 {[%clk 0:00:18]} 52. Bf3 {[%clk 0:00:05]}  h2 {[%clk 0:00:19]} 53. a8=Q {[%clk 0:00:04]}  Rxa8 {[%clk 0:00:19]} 54. Bxa8 {[%clk 0:00:05]}  Kg3 {[%clk 0:00:19]} 55. Kc4 {[%clk 0:00:06]}  Kf2 {[%clk 0:00:19]} 56. Kd3 {[%clk 0:00:06]} 1-0


[Site "https://www.chess.com"]

[Event "Titled Tuesday Blitz June 15 2021"]
[White "Titus, Andrew"]
[Black "Perez Perez, Gabriel"]
[WhiteFideId "2059770"]
[BlackFideId "32089147"]
[WhiteElo "2044"]
[BlackElo "2037"]
[Result "0-1"]
[Round "08"]
[TimeControl "180+1"]
[Date "2021.06.15"]
[WhiteClock "0:01:56"]
[BlackClock "0:00:45"]

1. e4 {[%clk 0:03:00]}  c5 {[%clk 0:02:58]} 2. Nf3 {[%clk 0:03:01]}  Nc6 {[%clk 0:02:57]} 3. d4 {[%clk 0:03:01]}  cxd4 {[%clk 0:02:58]} 4. Nxd4 {[%clk 0:03:02]}  e5 {[%clk 0:02:58]} 5. Nb5 {[%clk 0:03:01]}  d6 {[%clk 0:02:56]} 6. N1c3 {[%clk 0:03:00]}  a6 {[%clk 0:02:56]} 7. Na3 {[%clk 0:03:01]}  b5 {[%clk 0:02:56]} 8. Nd5 {[%clk 0:03:01]}  Nge7 {[%clk 0:02:52]} 9. Be3 {[%clk 0:02:52]}  Nxd5 {[%clk 0:02:47]} 10. Qxd5 {[%clk 0:02:47]}  Bb7 {[%clk 0:02:42]} 11. Qd2 {[%clk 0:02:41]}  Ne7 {[%clk 0:02:32]} 12. f3 {[%clk 0:02:31]}  d5 {[%clk 0:02:27]} 13. exd5 {[%clk 0:02:30]}  Nxd5 {[%clk 0:02:19]} 14. Nxb5 {[%clk 0:02:27]}  axb5 {[%clk 0:01:57]} 15. Bxb5+ {[%clk 0:02:28]}  Ke7 {[%clk 0:01:57]} 16. Bc5+ {[%clk 0:02:27]}  Ke6 {[%clk 0:01:53]} 17. Bxf8 {[%clk 0:02:25]}  Rxf8 {[%clk 0:01:39]} 18. Bc4 {[%clk 0:02:24]}  Qh4+ {[%clk 0:01:36]} 19. g3 {[%clk 0:02:16]}  Qxc4 {[%clk 0:01:37]} 20. b3 {[%clk 0:02:16]}  Qc3 {[%clk 0:01:27]} 21. Rd1 {[%clk 0:02:15]}  Qxf3 {[%clk 0:01:22]} 22. Rf1 {[%clk 0:02:13]}  Qe4+ {[%clk 0:01:21]} 23. Kf2 {[%clk 0:02:12]}  Rad8 {[%clk 0:01:15]} 24. c4 {[%clk 0:02:12]}  Nf4 {[%clk 0:01:09]} 25. gxf4 {[%clk 0:02:01]}  Rxd2+ {[%clk 0:01:03]} 26. Rxd2 {[%clk 0:02:02]}  Qf3+ {[%clk 0:00:57]} 27. Ke1 {[%clk 0:01:59]}  Qe3+ {[%clk 0:00:57]} 28. Re2 {[%clk 0:01:59]}  Qc3+ {[%clk 0:00:53]} 29. Kf2 {[%clk 0:01:59]}  e4 {[%clk 0:00:50]} 30. Re3 {[%clk 0:01:58]}  Qd2+ {[%clk 0:00:49]} 31. Re2 {[%clk 0:01:58]}  e3+ {[%clk 0:00:45]} 32. Kg3 {[%clk 0:01:56]}  Qxe2 {[%clk 0:00:45]} 0-1


[Site "https://www.chess.com"]

[Event "Titled Tuesday Blitz June 15 2021"]
[White "Urazayev, Arystanbek"]
[Black "Tejedor Fuente, Enrique"]
[WhiteFideId "13709810"]
[BlackFideId "2299100"]
[WhiteElo "2321"]
[BlackElo "2535"]
[Result "1-0"]
[Round "08"]
[TimeControl "180+1"]
[Date "2021.06.15"]
[WhiteClock "0:02:13"]
[BlackClock "0:00:01"]

1. e4 {[%clk 0:03:00]}  d6 {[%clk 0:02:52]} 2. d4 {[%clk 0:03:01]}  Nf6 {[%clk 0:02:46]} 3. Bd3 {[%clk 0:03:01]}  c6 {[%clk 0:02:46]} 4. Nd2 {[%clk 0:03:00]}  g6 {[%clk 0:02:46]} 5. Ngf3 {[%clk 0:03:00]}  Bg7 {[%clk 0:02:45]} 6. O-O {[%clk 0:03:00]}  O-O {[%clk 0:02:42]} 7. c3 {[%clk 0:03:00]}  Qc7 {[%clk 0:02:35]} 8. a4 {[%clk 0:02:59]}  e5 {[%clk 0:02:26]} 9. Qc2 {[%clk 0:02:58]}  b6 {[%clk 0:02:22]} 10. a5 {[%clk 0:02:54]}  b5 {[%clk 0:02:21]} 11. dxe5 {[%clk 0:02:55]}  dxe5 {[%clk 0:02:20]} 12. Nb3 {[%clk 0:02:56]}  a6 {[%clk 0:02:10]} 13. c4 {[%clk 0:02:53]}  Be6 {[%clk 0:01:54]} 14. cxb5 {[%clk 0:02:41]}  Bxb3 {[%clk 0:01:53]} 15. Qxb3 {[%clk 0:02:38]}  axb5 {[%clk 0:01:53]} 16. Qc3 {[%clk 0:02:28]}  Rc8 {[%clk 0:00:27]} 17. Be3 {[%clk 0:02:26]}  Nbd7 {[%clk 0:00:26]} 18. b4 {[%clk 0:02:25]}  Ne8 {[%clk 0:00:21]} 19. Rfc1 {[%clk 0:02:24]}  Nd6 {[%clk 0:00:18]} 20. h3 {[%clk 0:02:23]}  h6 {[%clk 0:00:17]} 21. Nd2 {[%clk 0:02:22]}  Kh7 {[%clk 0:00:13]} 22. Nb3 {[%clk 0:02:23]}  f5 {[%clk 0:00:11]} 23. exf5 {[%clk 0:02:18]}  e4 {[%clk 0:00:11]} 24. fxg6+ {[%clk 0:02:18]}  Kh8 {[%clk 0:00:08]} 25. Bd4 {[%clk 0:02:18]}  Nf8 {[%clk 0:00:01]} 26. Bf1 {[%clk 0:02:13]} 1-0


[Site "https://www.chess.com"]

[Event "Titled Tuesday Blitz June 15 2021"]
[White "Vlassov, Nikolai"]
[Black "Sztokbant, Bernardo Vainzoff"]
[WhiteFideId "4103360"]
[BlackFideId "2115956"]
[WhiteElo "2407"]
[BlackElo "2264"]
[Result "1-0"]
[Round "08"]
[TimeControl "180+1"]
[Date "2021.06.15"]
[WhiteClock "0:01:36"]
[BlackClock "0:00:30"]

1. e4 {[%clk 0:03:00]}  c5 {[%clk 0:02:44]} 2. c3 {[%clk 0:03:00]}  d5 {[%clk 0:02:42]} 3. exd5 {[%clk 0:03:00]}  Qxd5 {[%clk 0:02:43]} 4. d4 {[%clk 0:03:01]}  Nc6 {[%clk 0:02:43]} 5. Nf3 {[%clk 0:03:01]}  Bg4 {[%clk 0:02:44]} 6. dxc5 {[%clk 0:03:00]}  Qxd1+ {[%clk 0:02:42]} 7. Kxd1 {[%clk 0:03:00]}  e6 {[%clk 0:02:43]} 8. Be3 {[%clk 0:03:00]}  O-O-O {[%clk 0:02:42]} 9. Kc1 {[%clk 0:02:58]}  Nf6 {[%clk 0:02:43]} 10. b4 {[%clk 0:02:57]}  Nd5 {[%clk 0:02:39]} 11. Bb5 {[%clk 0:02:56]}  Bxf3 {[%clk 0:02:38]} 12. gxf3 {[%clk 0:02:56]}  g6 {[%clk 0:02:36]} 13. Bxc6 {[%clk 0:02:54]}  bxc6 {[%clk 0:02:37]} 14. Kc2 {[%clk 0:02:50]}  Bg7 {[%clk 0:02:36]} 15. a3 {[%clk 0:02:50]}  Rd7 {[%clk 0:02:32]} 16. Ra2 {[%clk 0:02:50]}  Rhd8 {[%clk 0:02:32]} 17. c4 {[%clk 0:02:49]}  Ne7 {[%clk 0:02:30]} 18. Nc3 {[%clk 0:02:46]}  Nf5 {[%clk 0:02:30]} 19. Ne4 {[%clk 0:02:40]}  Kc7 {[%clk 0:02:18]} 20. Bf4+ {[%clk 0:02:38]}  e5 {[%clk 0:02:16]} 21. Be3 {[%clk 0:02:38]}  Nd4+ {[%clk 0:02:07]} 22. Bxd4 {[%clk 0:02:37]}  Rxd4 {[%clk 0:02:07]} 23. Nd6 {[%clk 0:02:29]}  f5 {[%clk 0:01:56]} 24. Rd1 {[%clk 0:02:00]}  Rxd1 {[%clk 0:01:46]} 25. Kxd1 {[%clk 0:02:00]}  Bf8 {[%clk 0:01:47]} 26. Re2 {[%clk 0:01:49]}  Bxd6 {[%clk 0:01:48]} 27. cxd6+ {[%clk 0:01:49]}  Rxd6+ {[%clk 0:01:48]} 28. Kc2 {[%clk 0:01:49]}  Re6 {[%clk 0:01:40]} 29. c5 {[%clk 0:01:49]}  Kd7 {[%clk 0:01:33]} 30. Kd3 {[%clk 0:01:48]}  g5 {[%clk 0:01:20]} 31. Kc4 {[%clk 0:01:46]}  Ke7 {[%clk 0:01:11]} 32. a4 {[%clk 0:01:46]}  h5 {[%clk 0:01:04]} 33. b5 {[%clk 0:01:46]}  cxb5+ {[%clk 0:01:03]} 34. axb5 {[%clk 0:01:46]}  Kf6 {[%clk 0:01:02]} 35. c6 {[%clk 0:01:39]}  Re7 {[%clk 0:00:53]} 36. Kd5 {[%clk 0:01:37]}  g4 {[%clk 0:00:48]} 37. fxg4 {[%clk 0:01:36]}  hxg4 {[%clk 0:00:47]} 38. Kd6 {[%clk 0:01:37]}  Re6+ {[%clk 0:00:39]} 39. Kd7 {[%clk 0:01:37]}  Re7+ {[%clk 0:00:39]} 40. Kd8 {[%clk 0:01:37]}  e4 {[%clk 0:00:29]} 41. c7 {[%clk 0:01:37]}  Rxc7 {[%clk 0:00:30]} 42. Kxc7 {[%clk 0:01:36]} 1-0


[Site "https://www.chess.com"]

[Event "Titled Tuesday Blitz June 15 2021"]
[White "Vokhidov, Shamsiddin"]
[Black "Rodchenkov, Sergey D."]
[WhiteFideId "14204223"]
[BlackFideId "4168712"]
[WhiteElo "2572"]
[BlackElo "2306"]
[Result "1-0"]
[Round "08"]
[TimeControl "180+1"]
[Date "2021.06.15"]
[WhiteClock "0:00:44"]
[BlackClock "0:01:06"]

1. e4 {[%clk 0:03:00]}  c5 {[%clk 0:02:56]} 2. Nc3 {[%clk 0:03:00]}  e6 {[%clk 0:02:55]} 3. Nf3 {[%clk 0:02:58]}  a6 {[%clk 0:02:55]} 4. g3 {[%clk 0:02:56]}  b5 {[%clk 0:02:54]} 5. d4 {[%clk 0:02:56]}  cxd4 {[%clk 0:02:53]} 6. Nxd4 {[%clk 0:02:57]}  Bb7 {[%clk 0:02:52]} 7. Bg2 {[%clk 0:02:57]}  Qc7 {[%clk 0:02:53]} 8. O-O {[%clk 0:02:57]}  d6 {[%clk 0:02:53]} 9. Re1 {[%clk 0:02:57]}  Nd7 {[%clk 0:02:53]} 10. a4 {[%clk 0:02:55]}  b4 {[%clk 0:02:53]} 11. Na2 {[%clk 0:02:51]}  a5 {[%clk 0:02:48]} 12. c3 {[%clk 0:02:48]}  bxc3 {[%clk 0:02:46]} 13. Nxc3 {[%clk 0:02:49]}  Ngf6 {[%clk 0:02:46]} 14. Bf4 {[%clk 0:02:41]}  Ne5 {[%clk 0:02:43]} 15. Rc1 {[%clk 0:02:38]}  Qb8 {[%clk 0:02:40]} 16. Ncb5 {[%clk 0:02:36]}  Be7 {[%clk 0:02:40]} 17. Nc7+ {[%clk 0:02:32]}  Kf8 {[%clk 0:02:40]} 18. Nxa8 {[%clk 0:02:31]}  Bxa8 {[%clk 0:02:40]} 19. Bxe5 {[%clk 0:02:24]}  dxe5 {[%clk 0:02:40]} 20. Nc6 {[%clk 0:02:25]}  Bxc6 {[%clk 0:02:38]} 21. Rxc6 {[%clk 0:02:23]}  g6 {[%clk 0:02:38]} 22. Qe2 {[%clk 0:01:59]}  Kg7 {[%clk 0:02:34]} 23. Qb5 {[%clk 0:01:58]}  Bb4 {[%clk 0:02:29]} 24. Qxb8 {[%clk 0:01:56]}  Rxb8 {[%clk 0:02:28]} 25. Rd1 {[%clk 0:01:57]}  Rb7 {[%clk 0:02:26]} 26. Bf1 {[%clk 0:01:54]}  Nxe4 {[%clk 0:02:25]} 27. Bg2 {[%clk 0:01:53]}  Nf6 {[%clk 0:02:11]} 28. Rxe6 {[%clk 0:01:53]}  Rc7 {[%clk 0:02:09]} 29. Rxe5 {[%clk 0:01:52]}  Rc2 {[%clk 0:02:09]} 30. Bf3 {[%clk 0:01:48]}  Rxb2 {[%clk 0:02:06]} 31. Re2 {[%clk 0:01:47]}  Rb3 {[%clk 0:02:06]} 32. Kg2 {[%clk 0:01:47]}  h5 {[%clk 0:02:06]} 33. h3 {[%clk 0:01:46]}  g5 {[%clk 0:02:06]} 34. Re5 {[%clk 0:01:44]}  Kg6 {[%clk 0:02:01]} 35. Rd8 {[%clk 0:01:41]}  g4 {[%clk 0:01:59]} 36. Be4+ {[%clk 0:01:35]}  Kg7 {[%clk 0:01:46]} 37. hxg4 {[%clk 0:01:32]}  Nxg4 {[%clk 0:01:41]} 38. Rxh5 {[%clk 0:01:27]}  Kf6 {[%clk 0:01:39]} 39. Rd7 {[%clk 0:01:21]}  Ne5 {[%clk 0:01:34]} 40. Rf5+ {[%clk 0:01:16]}  Ke6 {[%clk 0:01:34]} 41. Rd5 {[%clk 0:01:13]}  f6 {[%clk 0:01:33]} 42. f4 {[%clk 0:00:52]}  Rb2+ {[%clk 0:01:29]} 43. Kh3 {[%clk 0:00:52]}  Nf7 {[%clk 0:01:14]} 44. Rh5 {[%clk 0:00:49]}  Nd6 {[%clk 0:01:12]} 45. Bf3 {[%clk 0:00:47]}  Rf2 {[%clk 0:01:07]} 46. Bg4+ {[%clk 0:00:47]}  Kf7 {[%clk 0:01:06]} 47. Rh7+ {[%clk 0:00:45]}  Kg6 {[%clk 0:01:06]} 48. Rdh5 {[%clk 0:00:44]} 1-0


[Site "https://www.chess.com"]

[Event "Titled Tuesday Blitz June 15 2021"]
[White "Willow, Jonah B"]
[Black "Morefield, Jason"]
[WhiteFideId "438804"]
[BlackFideId "30920825"]
[WhiteElo "2261"]
[BlackElo "2171"]
[Result "1-0"]
[Round "08"]
[TimeControl "180+1"]
[Date "2021.06.15"]
[WhiteClock "0:01:00"]
[BlackClock "0:00:14"]

1. e4 {[%clk 0:03:00]}  c5 {[%clk 0:02:59]} 2. Nf3 {[%clk 0:03:00]}  d6 {[%clk 0:02:58]} 3. d4 {[%clk 0:03:00]}  cxd4 {[%clk 0:02:59]} 4. Qxd4 {[%clk 0:03:01]}  Nf6 {[%clk 0:02:58]} 5. Nc3 {[%clk 0:03:00]}  Nc6 {[%clk 0:02:58]} 6. Bb5 {[%clk 0:03:00]}  Bd7 {[%clk 0:02:58]} 7. Bxc6 {[%clk 0:03:01]}  Bxc6 {[%clk 0:02:59]} 8. Bg5 {[%clk 0:03:02]}  e5 {[%clk 0:02:48]} 9. Qd3 {[%clk 0:03:01]}  Be7 {[%clk 0:02:47]} 10. O-O {[%clk 0:03:00]}  O-O {[%clk 0:02:47]} 11. Nd2 {[%clk 0:03:00]}  Nd7 {[%clk 0:02:43]} 12. Bxe7 {[%clk 0:02:58]}  Qxe7 {[%clk 0:02:44]} 13. Nd5 {[%clk 0:02:50]}  Bxd5 {[%clk 0:02:44]} 14. Qxd5 {[%clk 0:02:51]}  Nf6 {[%clk 0:02:43]} 15. Qd3 {[%clk 0:02:49]}  Rfd8 {[%clk 0:02:39]} 16. c4 {[%clk 0:02:49]}  Rac8 {[%clk 0:02:39]} 17. Rfd1 {[%clk 0:02:49]}  Nd7 {[%clk 0:02:38]} 18. Nf1 {[%clk 0:02:48]}  Nc5 {[%clk 0:02:38]} 19. Qe2 {[%clk 0:02:46]}  Ne6 {[%clk 0:02:38]} 20. Ne3 {[%clk 0:02:44]}  Nd4 {[%clk 0:02:39]} 21. Qg4 {[%clk 0:02:41]}  Qe6 {[%clk 0:02:37]} 22. Qxe6 {[%clk 0:02:26]}  fxe6 {[%clk 0:02:36]} 23. Rd2 {[%clk 0:02:25]}  b5 {[%clk 0:02:32]} 24. b3 {[%clk 0:02:22]}  bxc4 {[%clk 0:02:28]} 25. Nxc4 {[%clk 0:02:21]}  g5 {[%clk 0:02:21]} 26. Rad1 {[%clk 0:02:20]}  Kf7 {[%clk 0:02:19]} 27. f3 {[%clk 0:02:17]}  Kf6 {[%clk 0:02:19]} 28. Kf2 {[%clk 0:02:16]}  d5 {[%clk 0:02:16]} 29. exd5 {[%clk 0:02:07]}  Rxd5 {[%clk 0:02:09]} 30. Ne3 {[%clk 0:02:07]}  Rdc5 {[%clk 0:02:07]} 31. Ng4+ {[%clk 0:02:04]}  Kf5 {[%clk 0:02:04]} 32. Re1 {[%clk 0:02:05]}  h5 {[%clk 0:01:58]} 33. Ne3+ {[%clk 0:02:04]}  Kf6 {[%clk 0:01:55]} 34. Nc4 {[%clk 0:02:04]}  a5 {[%clk 0:01:49]} 35. Red1 {[%clk 0:01:50]}  Nf5 {[%clk 0:01:25]} 36. Nb6 {[%clk 0:01:48]}  g4 {[%clk 0:01:12]} 37. Nxc8 {[%clk 0:01:47]}  Rxc8 {[%clk 0:01:11]} 38. Re1 {[%clk 0:01:42]}  Rc3 {[%clk 0:01:05]} 39. Rde2 {[%clk 0:01:38]}  Nd4 {[%clk 0:01:00]} 40. Rxe5 {[%clk 0:01:38]}  Rc2+ {[%clk 0:00:59]} 41. Kg3 {[%clk 0:01:36]}  gxf3 {[%clk 0:00:51]} 42. gxf3 {[%clk 0:01:37]}  Rxa2 {[%clk 0:00:51]} 43. R1e4 {[%clk 0:01:23]}  h4+ {[%clk 0:00:36]} 44. Kf4 {[%clk 0:01:12]}  Rd2 {[%clk 0:00:27]} 45. Rxa5 {[%clk 0:01:11]}  Nxb3 {[%clk 0:00:17]} 46. Rh5 {[%clk 0:01:11]}  Rxh2 {[%clk 0:00:16]} 47. Rh6+ {[%clk 0:01:10]}  Kg7 {[%clk 0:00:17]} 48. Rexe6 {[%clk 0:01:05]}  Nc5 {[%clk 0:00:16]} 49. Reg6+ {[%clk 0:01:04]}  Kf7 {[%clk 0:00:16]} 50. Rc6 {[%clk 0:01:04]}  Nd3+ {[%clk 0:00:15]} 51. Ke3 {[%clk 0:01:04]}  Ne5 {[%clk 0:00:15]} 52. Rc7+ {[%clk 0:01:02]}  Kg8 {[%clk 0:00:14]} 53. Re6 {[%clk 0:01:00]} 1-0


[Site "https://www.chess.com"]